bitfinex-derivatives/quotes_BTCF0:USTF0_20250509
["timestamp","ask_amount","ask_price","bid_price","bid_amount"]
[1746805032567,0.3585737,102900.0,102890.0,0.35806051]
[1746805032770,0.60475627,102900.0,102890.0,0.35806051]
[1746805033073,0.1943915,102880.0,102870.0,0.1658]
[1746805033278,0.44057407,102880.0,102870.0,0.29997064]
[1746805033469,0.52207407,102880.0,102870.0,0.42557093]
[1746805033666,0.52207407,102880.0,102870.0,0.52275738]
[1746805033867,0.2758915,102880.0,102870.0,0.52275738]
[1746805034669,0.2758915,102880.0,102870.0,0.44345738]
[1746805034670,0.52207407,102880.0,102870.0,0.44345738]
[1746805034874,0.52207407,102880.0,102870.0,0.27765738]
[1746805035071,0.88287407,102880.0,102870.0,0.27765738]
[1746805035269,1.04287407,102880.0,102870.0,0.005]
[1746805035468,1.14007807,102880.0,102870.0,0.005]
[1746805036375,1.14007807,102880.0,102850.0,0.28984605]
[1746805036376,0.1944293,102860.0,102850.0,0.28984605]
[1746805036672,0.80141187,102860.0,102850.0,0.52731649]
[1746805036868,0.88311187,102860.0,102850.0,0.52731649]
[1746805037074,0.6369293,102860.0,102850.0,0.52731649]
[1746805037774,0.6369293,102860.0,102850.0,0.3297732]
[1746805038375,0.6369293,102860.0,102850.0,0.3307732]
[1746805038675,0.64673917,102860.0,102850.0,0.3307732]
[1746805039074,0.64673917,102860.0,102850.0,0.3317732]
[1746805041376,0.2350293,102860.0,102850.0,0.8870214]
[1746805041680,0.6038307,102870.0,102860.0,0.1944293]
[1746805041873,0.5552271,102870.0,102860.0,0.6223344]
[1746805042077,0.36558358,102880.0,102870.0,0.1944104]
[1746805042385,0.2684101,102880.0,102870.0,0.4155755]
[1746805042571,0.2684101,102880.0,102870.0,0.41557859]
[1746805042772,0.2684101,102880.0,102870.0,0.51279338]
[1746805043178,0.3095101,102880.0,102870.0,0.51279338]
[1746805043379,0.3095101,102880.0,102870.0,0.87359338]
[1746805044680,0.3125101,102880.0,102870.0,0.87359338]
[1746805044985,0.2414977,102880.0,102870.0,0.87359338]
[1746805045781,0.2414977,102880.0,102870.0,0.85892548]
[1746805045983,0.2414977,102880.0,102870.0,0.87359315]
[1746805049282,0.2414977,102880.0,102870.0,0.87359606]
[1746805049882,0.006,102880.0,102870.0,1.11977863]
[1746805050078,0.006,102880.0,102870.0,1.21977863]
[1746805050274,0.006,102880.0,102870.0,1.37977863]
[1746805050478,0.2003915,102880.0,102870.0,1.37977863]
[1746805050799,0.2003915,102880.0,102870.0,1.27977863]
[1746805050986,0.2003915,102880.0,102870.0,1.37977773]
[1746805051287,0.2003915,102880.0,102870.0,1.27977773]
[1746805052691,0.2003915,102880.0,102870.0,1.37977544]
[1746805053184,0.12205083,102900.0,102890.0,0.1943726]
[1746805053185,0.3169675,102900.0,102890.0,0.1943726]
[1746805053382,0.3169675,102900.0,102890.0,1.01880028]
[1746805053579,0.3169675,102900.0,102890.0,1.09960028]
[1746805053882,0.3169675,102900.0,102890.0,0.64163302]
[1746805054083,0.3563675,102900.0,102890.0,0.83600562]
[1746805054290,0.3623675,102900.0,102890.0,1.19780207]
[1746805054589,0.3653675,102900.0,102890.0,0.83700207]
[1746805054884,0.3653675,102900.0,102890.0,0.83699977]
[1746805055087,0.3623675,102900.0,102890.0,0.83599977]
[1746805055478,0.3623675,102900.0,102890.0,1.19679977]
[1746805055985,0.96935007,102900.0,102890.0,0.35430688]
[1746805056284,0.93443767,102900.0,102890.0,0.31260528]
[1746805056593,0.1943915,102880.0,102870.0,0.7654502]
[1746805056789,0.1943915,102880.0,102870.0,0.93570821]
[1746805056987,0.2715915,102880.0,102870.0,0.93570821]
[1746805057183,0.51777407,102880.0,102870.0,0.83848646]
[1746805057390,0.2715915,102880.0,102870.0,0.83848646]
[1746805057587,0.2715915,102880.0,102870.0,1.03289686]
[1746805057788,0.2715915,102880.0,102870.0,1.03589686]
[1746805057983,0.2715915,102880.0,102870.0,1.03789686]
[1746805058495,0.2715915,102880.0,102870.0,0.71788617]
[1746805058700,0.2715915,102880.0,102870.0,0.35708617]
[1746805058894,0.2715915,102880.0,102870.0,0.55149657]
[1746805059595,0.2715915,102880.0,102870.0,0.54849994]
[1746805059892,0.2715915,102880.0,102870.0,0.54649994]
[1746805060086,0.2725915,102880.0,102870.0,0.54649994]
[1746805060593,0.2755915,102880.0,102870.0,0.54649994]
[1746805061300,0.2755915,102880.0,102870.0,0.54650086]
[1746805061597,0.2745915,102880.0,102870.0,0.54650086]
[1746805062300,0.2745915,102880.0,102870.0,0.35209046]
[1746805062491,0.2725915,102880.0,102870.0,0.35209046]
[1746805063590,0.51877407,102880.0,102870.0,0.35209046]
[1746805063892,0.46017812,102880.0,102870.0,0.35209046]
[1746805064500,0.46017812,102880.0,102870.0,0.47769075]
[1746805064703,0.46017812,102880.0,102870.0,0.47769364]
[1746805064894,0.82097812,102880.0,102870.0,0.47769364]
[1746805065096,0.1944104,102870.0,102860.0,0.0417]
[1746805065301,0.86189702,102870.0,102860.0,0.0146677]
[1746805065600,0.86189702,102870.0,102860.0,0.11187304]
[1746805066097,0.86189702,102870.0,102860.0,0.11387304]
[1746805066294,0.86189702,102870.0,102860.0,0.15267304]
[1746805067497,0.3135104,102870.0,102860.0,0.70790234]
[1746805067697,0.2753104,102870.0,102860.0,0.87520263]
[1746805067997,0.0396,102870.0,102860.0,1.06278925]
[1746805068196,0.0740124,102880.0,102870.0,0.1944104]
[1746805068396,0.2684039,102880.0,102870.0,1.16610501]
[1746805068796,0.2684039,102880.0,102870.0,1.2633198]
[1746805069003,0.2684039,102880.0,102870.0,1.07573318]
[1746805069204,0.3087039,102880.0,102870.0,1.23573318]
[1746805069908,0.3097039,102880.0,102870.0,1.23573318]
[1746805071604,0.2356915,102880.0,102870.0,1.23573318]
[1746805074105,0.2356915,102880.0,102870.0,1.07573318]
[1746805074496,0.2356915,102880.0,102870.0,0.88132278]
[1746805074696,0.2786915,102880.0,102870.0,0.88132278]
[1746805075505,0.2786915,102880.0,102870.0,0.75572249]
[1746805077511,0.2786915,102880.0,102870.0,1.07573318]
[1746805077699,0.2356915,102880.0,102870.0,1.07573318]
[1746805078402,0.001,102880.0,102870.0,1.42185511]
[1746805079206,0.001,102880.0,102870.0,1.67905911]
[1746805079402,0.001,102880.0,102870.0,1.68105911]
[1746805079801,0.0740124,102890.0,102880.0,0.1943915]
[1746805080012,0.29301982,102900.0,102890.0,0.1943726]
[1746805080301,0.29301982,102900.0,102890.0,1.23083947]
[1746805080512,0.29301982,102900.0,102890.0,1.32803536]
[1746805081208,0.29301982,102900.0,102890.0,1.48803536]
[1746805081707,0.29301982,102900.0,102890.0,1.48802579]
[1746805082010,0.29501982,102900.0,102890.0,1.48802579]
[1746805082406,0.29701982,102900.0,102890.0,1.48802579]
[1746805083408,0.29701982,102900.0,102890.0,1.48802219]
[1746805083705,0.10266612,102900.0,102890.0,1.48802219]
[1746805084103,0.004,102900.0,102890.0,2.65190219]
[1746805084410,0.004,102900.0,102890.0,2.84909019]
[1746805084607,0.004,102900.0,102890.0,2.75190219]
[1746805084909,0.004,102900.0,102890.0,2.84909019]
[1746805085101,0.004,102900.0,102890.0,2.84908389]
[1746805085499,0.002,102900.0,102890.0,2.85108389]
[1746805085903,0.3400775,102920.0,102910.0,0.1943348]
[1746805086101,0.3400775,102920.0,102910.0,1.01836027]
[1746805086300,0.3400775,102920.0,102910.0,1.14286027]
[1746805086508,0.3400775,102920.0,102910.0,1.24002783]
[1746805086807,0.3400775,102920.0,102910.0,1.25446097]
[1746805087003,0.3845775,102920.0,102910.0,1.25446097]
[1746805087207,0.63069943,102920.0,102910.0,0.77308588]
[1746805087408,0.4311775,102920.0,102910.0,0.77308588]
[1746805087613,0.4311775,102920.0,102910.0,0.80590068]
[1746805087812,0.4311775,102920.0,102910.0,0.96742068]
[1746805088512,0.4311775,102920.0,102910.0,0.96740383]
[1746805088698,0.3865775,102920.0,102910.0,0.96740383]
[1746805088903,0.3885775,102920.0,102910.0,0.96740383]
[1746805089406,0.3885775,102920.0,102910.0,1.09300412]
[1746805089911,0.4305775,102920.0,102910.0,0.89866932]
[1746805090109,0.4305775,102920.0,102910.0,1.09299859]
[1746805090298,0.4305775,102920.0,102910.0,0.9673983]
[1746805090504,0.4305775,102920.0,102910.0,1.09299859]
[1746805090915,0.0485,102920.0,102910.0,1.28039716]
[1746805091100,0.2428159,102920.0,102910.0,1.44039716]
[1746805091300,0.2428159,102920.0,102910.0,1.54039716]
[1746805091501,0.1983159,102920.0,102910.0,1.55010575]
[1746805091715,0.1983159,102920.0,102910.0,1.54039716]
[1746805091916,0.1983159,102920.0,102910.0,1.90119716]
[1746805092412,0.004,102920.0,102910.0,1.90119716]
[1746805092912,0.1983159,102920.0,102910.0,1.90119716]
[1746805093310,0.004,102920.0,102910.0,1.90119716]
[1746805093719,0.1983159,102920.0,102910.0,1.90119716]
[1746805094219,0.004,102920.0,102910.0,1.90119716]
[1746805094715,0.1983159,102920.0,102910.0,1.91077284]
[1746805095117,0.1983159,102920.0,102910.0,1.89613004]
[1746805095716,0.1983159,102920.0,102910.0,1.70873147]
[1746805095904,0.1983159,102920.0,102910.0,1.89613004]
[1746805097921,0.1983159,102920.0,102910.0,1.79613004]
[1746805098119,0.2423159,102920.0,102910.0,1.89613004]
[1746805098516,0.2423159,102920.0,102910.0,1.70873147]
[1746805098721,0.2423159,102920.0,102910.0,1.79613004]
[1746805099828,0.2423159,102920.0,102910.0,1.89613004]
[1746805104528,0.004,102920.0,102910.0,1.89613004]
[1746805104732,0.1983159,102920.0,102910.0,1.89613004]
[1746805105635,0.004,102920.0,102910.0,1.89613004]
[1746805108138,0.004,102920.0,102910.0,1.91101059]
[1746805108836,0.004,102920.0,102910.0,1.91101961]
[1746805110738,0.0462,102920.0,102910.0,1.91104565]
[1746805112238,0.0462,102920.0,102910.0,1.72364708]
[1746805112434,0.2405159,102920.0,102910.0,1.64952565]
[1746805112638,0.2405159,102920.0,102910.0,1.46212708]
[1746805112939,0.2815159,102920.0,102910.0,1.42356708]
[1746805113126,0.46891447,102920.0,102910.0,0.73067631]
[1746805113327,1.21808247,102920.0,102910.0,0.12651631]
[1746805113644,0.1943348,102910.0,102900.0,0.14818826]
[1746805113939,0.78353337,102910.0,102900.0,0.24535582]
[1746805114135,0.94353337,102910.0,102900.0,0.24535582]
[1746805114739,1.29070937,102910.0,102900.0,0.14918826]
[1746805114941,1.29070937,102910.0,102900.0,0.15018826]
[1746805116042,1.30044419,102910.0,102900.0,0.15018826]
[1746805117044,1.34174419,102910.0,102900.0,0.15018826]
[1746805117242,1.09174419,102910.0,102900.0,0.15018826]
[1746805118045,0.90434562,102910.0,102900.0,0.15018826]
[1746805118253,1.09274419,102910.0,102900.0,0.14918826]
[1746805118440,1.09274419,102910.0,102900.0,0.24636526]
[1746805118749,1.09274419,102910.0,102900.0,0.24536526]
[1746805118750,1.09374419,102910.0,102900.0,0.24536526]
[1746805119337,0.90634562,102910.0,102900.0,0.097177]
[1746805119543,1.09374419,102910.0,102900.0,0.097177]
[1746805121948,0.80916962,102910.0,102900.0,0.2915307]
[1746805122141,0.99656819,102910.0,102900.0,0.2915307]
[1746805122341,0.99656819,102910.0,102900.0,0.3332307]
[1746805122536,0.4386348,102910.0,102900.0,0.88142927]
[1746805122743,0.2033,102910.0,102900.0,1.04762956]
[1746805122949,0.3976348,102910.0,102900.0,1.09102956]
[1746805123240,0.2376348,102910.0,102900.0,1.09102956]
[1746805123439,0.002,102910.0,102900.0,1.09102956]
[1746805123643,0.1963348,102910.0,102900.0,1.09102956]
[1746805123838,0.002,102910.0,102900.0,1.09102956]
[1746805124039,0.002,102910.0,102900.0,1.52842813]
[1746805124240,0.001,102910.0,102900.0,1.78842813]
[1746805124442,0.001,102910.0,102900.0,1.60202956]
[1746805124649,0.39014422,102920.0,102910.0,0.1943348]
[1746805124848,0.43114422,102920.0,102910.0,1.27535366]
[1746805125252,0.13966612,102920.0,102910.0,1.38227648]
[1746805125547,0.29298202,102920.0,102910.0,1.38227648]
[1746805125943,0.29398202,102920.0,102910.0,1.38227648]
[1746805126146,0.1953159,102920.0,102910.0,1.64227648]
[1746805126351,0.1953159,102920.0,102910.0,1.54227648]
[1746805126545,0.1963159,102920.0,102910.0,1.54227648]
[1746805126745,0.1963159,102920.0,102910.0,1.35487791]
[1746805126946,0.2373159,102920.0,102910.0,1.35487791]
[1746805127148,0.2815159,102920.0,102910.0,1.20963824]
[1746805127349,0.2815159,102920.0,102910.0,1.39703681]
[1746805127855,0.2815159,102920.0,102910.0,1.20963824]
[1746805128352,0.1963159,102920.0,102910.0,1.39703681]
[1746805129153,0.1963159,102920.0,102910.0,1.55703681]
[1746805130151,0.1963159,102920.0,102910.0,1.23491681]
[1746805130349,0.1963159,102920.0,102910.0,1.55691681]
[1746805131252,0.1963159,102920.0,102910.0,1.39691681]
[1746805132250,0.002,102920.0,102910.0,1.49691681]
[1746805133361,0.001,102920.0,102910.0,1.65891681]
[1746805133554,0.2468791,102930.0,102910.0,1.65891681]
[1746805133756,0.2468791,102930.0,102920.0,1.09351476]
[1746805134056,0.198297,102930.0,102920.0,1.09351476]
[1746805134257,0.198297,102930.0,102920.0,1.25351476]
[1746805134458,0.198297,102930.0,102920.0,1.35068232]
[1746805135262,0.198297,102930.0,102920.0,1.35168232]
[1746805135465,0.004,102930.0,102920.0,1.35168232]
[1746805135762,0.198297,102930.0,102920.0,1.35168232]
[1746805136159,0.004,102930.0,102920.0,1.53908089]
[1746805136359,0.3757064,102950.0,102940.0,0.1942782]
[1746805136560,0.3315064,102950.0,102940.0,1.42463677]
[1746805136863,0.3315064,102950.0,102940.0,1.54893677]
[1746805137061,0.3315064,102950.0,102940.0,1.64609489]
[1746805137462,0.3375064,102950.0,102940.0,1.64609489]
[1746805137650,0.2974064,102950.0,102940.0,1.77169518]
[1746805137961,0.2974064,102950.0,102940.0,1.58429661]
[1746805138162,0.3377064,102950.0,102940.0,1.77169518]
[1746805138660,0.2974064,102950.0,102940.0,1.77169518]
[1746805139164,0.3377064,102950.0,102940.0,1.58425661]
[1746805139565,0.3377064,102950.0,102940.0,1.77165518]
[1746805140969,0.2974064,102950.0,102940.0,1.77165518]
[1746805143055,0.2974064,102950.0,102940.0,1.78142792]
[1746805143366,0.2488371,102950.0,102940.0,1.78142792]
[1746805143572,0.2002593,102950.0,102940.0,1.78142792]
[1746805143960,0.004,102960.0,102950.0,0.1942593]
[1746805144264,0.1982404,102960.0,102950.0,1.04775816]
[1746805144462,0.1982404,102960.0,102950.0,0.92410056]
[1746805144666,0.1982404,102960.0,102950.0,1.14683066]
[1746805144969,0.1982404,102960.0,102950.0,1.04683066]
[1746805145171,0.1982404,102960.0,102950.0,0.85943209]
[1746805145371,0.2377404,102960.0,102950.0,0.85943209]
[1746805145670,0.1992404,102960.0,102950.0,1.04683066]
[1746805146569,0.1992404,102960.0,102950.0,0.85943209]
[1746805146874,0.1992404,102960.0,102950.0,1.04683066]
[1746805147175,0.2386404,102960.0,102950.0,1.04683066]
[1746805147373,0.2386404,102960.0,102950.0,0.85943209]
[1746805147671,0.2386404,102960.0,102950.0,1.04683066]
[1746805147874,0.2386404,102960.0,102950.0,0.85943209]
[1746805148377,0.2386404,102960.0,102950.0,1.04683066]
[1746805150276,0.2386404,102960.0,102950.0,1.18043209]
[1746805150478,0.3224404,102960.0,102950.0,1.18043209]
[1746805150865,0.3224404,102960.0,102950.0,1.0548318]
[1746805151063,0.3224404,102960.0,102950.0,1.18043209]
[1746805152579,0.3224404,102960.0,102950.0,1.18024771]
[1746805152779,0.3224404,102960.0,102950.0,0.8213725]
[1746805152977,0.3224404,102960.0,102950.0,1.0156318]
[1746805153166,0.4824404,102960.0,102950.0,1.0156318]
[1746805153371,0.66983897,102960.0,102950.0,0.8213725]
[1746805153570,0.66983897,102960.0,102950.0,1.0156318]
[1746805153776,0.66983897,102960.0,102950.0,0.8213725]
[1746805153978,1.31516554,102960.0,102950.0,0.0990725]
[1746805154180,0.1942782,102940.0,102930.0,0.0421]
[1746805154381,0.74247677,102940.0,102930.0,0.16064]
[1746805154585,0.86267677,102940.0,102930.0,0.25776981]
[1746805155078,1.02267677,102940.0,102930.0,0.25776981]
[1746805155572,1.48062477,102940.0,102930.0,0.16064]
[1746805155886,0.194297,102930.0,102920.0,0.11080096]
[1746805156176,0.1943159,102920.0,102910.0,0.21230362]
[1746805156482,0.86711447,102920.0,102910.0,0.21230362]
[1746805156682,0.96428247,102920.0,102910.0,0.21230362]
[1746805156882,0.3189159,102920.0,102910.0,0.50380598]
[1746805157178,0.8397159,102920.0,102910.0,0.35137118]
[1746805157378,0.8397159,102920.0,102910.0,0.54570598]
[1746805157682,1.02711447,102920.0,102910.0,0.15382789]
[1746805158975,1.02711447,102920.0,102910.0,0.11192789]
[1746805159179,0.1943537,102900.0,102890.0,0.56054]
[1746805159481,0.1943537,102900.0,102890.0,0.7964126]
[1746805159778,0.2754537,102900.0,102890.0,0.89359905]
[1746805159979,0.2754537,102900.0,102890.0,1.20659791]
[1746805160388,0.2342537,102900.0,102890.0,1.20959791]
[1746805160576,0.2342537,102900.0,102890.0,1.21359791]
[1746805161380,0.2729537,102900.0,102890.0,0.70622645]
[1746805161574,0.3146537,102900.0,102890.0,0.90059905]
[1746805161770,0.3146537,102900.0,102890.0,0.70622645]
[1746805161974,0.50205227,102900.0,102890.0,0.26482645]
[1746805162183,0.66205227,102900.0,102890.0,0.26482645]
[1746805162483,0.0485946,102890.0,102870.0,0.00544343]
[1746805162686,0.78129007,102880.0,102870.0,0.00544343]
[1746805162879,0.86259007,102880.0,102870.0,0.10262988]
[1746805163081,1.02259007,102880.0,102870.0,0.10262988]
[1746805163279,0.8351915,102880.0,102870.0,0.10117187]
[1746805163584,0.8351915,102880.0,102870.0,0.15007187]
[1746805164275,0.8351915,102880.0,102870.0,0.14907187]
[1746805164574,0.8351915,102880.0,102870.0,0.18887187]
[1746805165085,0.8351915,102880.0,102870.0,0.14707187]
[1746805165675,1.02259007,102880.0,102870.0,0.14707187]
[1746805166385,1.02259007,102880.0,102870.0,0.18887187]
[1746805166580,1.02259007,102880.0,102870.0,0.01098542]
[1746805168281,1.27983407,102880.0,102870.0,0.01098542]
[1746805168984,1.46723264,102880.0,102870.0,2e-08]
[1746805169181,0.1944293,102860.0,102850.0,0.01460276]
[1746805169381,0.1944482,102850.0,102840.0,0.60356658]
[1746805169591,0.46414677,102850.0,102840.0,0.60356658]
[1746805169882,0.46414677,102850.0,102840.0,0.70079082]
[1746805170278,0.47364346,102850.0,102840.0,0.60356658]
[1746805170473,0.28624489,102850.0,102840.0,0.70479082]
[1746805171084,0.28624489,102850.0,102840.0,0.89925792]
[1746805171291,0.2355482,102850.0,102840.0,1.05217678]
[1746805171583,0.340279,102860.0,102850.0,0.1944482]
[1746805171785,0.340279,102860.0,102850.0,0.98974706]
[1746805171979,0.340279,102860.0,102850.0,1.14986706]
[1746805172185,0.340279,102860.0,102850.0,1.24710076]
[1746805172378,0.2916676,102860.0,102850.0,1.24710076]
[1746805172582,0.2916306,102870.0,102860.0,0.1944293]
[1746805172785,0.2430254,102870.0,102860.0,0.76292959]
[1746805172981,0.2430254,102870.0,102860.0,0.95032816]
[1746805173185,0.2430254,102870.0,102860.0,1.0475524]
[1746805173685,0.2450254,102870.0,102860.0,1.0475524]
[1746805173881,0.2450254,102870.0,102860.0,0.86015383]
[1746805174483,0.2856254,102870.0,102860.0,0.86015383]
[1746805174684,0.3273254,102870.0,102860.0,0.66572453]
[1746805175397,0.87552397,102870.0,102860.0,0.17932424]
[1746805175695,0.87552397,102870.0,102860.0,0.13862424]
[1746805175889,0.7287254,102870.0,102860.0,0.13862424]
[1746805176088,0.91612397,102870.0,102860.0,0.13862424]
[1746805176293,0.91612397,102870.0,102860.0,0.17802424]
[1746805176494,0.55532397,102870.0,102860.0,0.17802424]
[1746805176883,0.3679254,102870.0,102860.0,0.17802424]
[1746805177582,0.3273254,102870.0,102860.0,0.37245354]
[1746805177787,0.2856254,102870.0,102860.0,0.49805383]
[1746805178188,0.2856254,102870.0,102860.0,0.30362453]
[1746805178497,0.6847254,102870.0,102860.0,0.30362453]
[1746805178696,0.87212397,102870.0,102860.0,0.17802424]
[1746805178891,0.91392397,102870.0,102860.0,0.17802424]
[1746805179492,0.91392397,102870.0,102860.0,0.30362453]
[1746805179895,0.7265254,102870.0,102860.0,0.30362453]
[1746805180198,0.91392397,102870.0,102860.0,0.30362453]
[1746805180395,0.7265254,102870.0,102860.0,0.30362453]
[1746805182387,0.91392397,102870.0,102860.0,0.30362453]
[1746805183399,0.7265254,102870.0,102860.0,0.30362453]
[1746805184589,0.7265254,102870.0,102860.0,0.49805383]
[1746805184791,0.2450254,102870.0,102860.0,0.85885383]
[1746805185200,0.2852254,102870.0,102860.0,0.85885383]
[1746805185704,0.2852254,102870.0,102860.0,0.66442453]
[1746805186411,0.2852254,102870.0,102860.0,0.85885383]
[1746805187406,0.2852254,102870.0,102860.0,0.66442453]
[1746805188116,0.3241254,102870.0,102860.0,0.30362453]
[1746805188316,0.55242397,102870.0,102860.0,0.17802424]
[1746805188615,0.91322397,102870.0,102860.0,0.17802424]
[1746805189116,0.1944293,102860.0,102850.0,0.0394]
[1746805189310,0.82592787,102860.0,102850.0,0.24430029]
[1746805189510,0.82592787,102860.0,102850.0,0.34151508]
[1746805189911,0.6385293,102860.0,102850.0,0.34151508]
[1746805190318,0.6385293,102860.0,102850.0,0.34351508]
[1746805191207,0.6385293,102860.0,102850.0,0.34251508]
[1746805191407,0.6395293,102860.0,102850.0,0.34251508]
[1746805191811,0.0424,102860.0,102850.0,0.89776328]
[1746805192006,0.001,102860.0,102850.0,1.24532185]
[1746805192212,0.1954293,102860.0,102850.0,1.40432185]
[1746805193217,0.1954293,102860.0,102850.0,1.40532185]
[1746805193412,0.1944293,102860.0,102850.0,1.40632185]
[1746805193919,0.1944293,102860.0,102850.0,1.21892328]
[1746805194818,0.1944293,102860.0,102850.0,1.40632185]
[1746805195213,0.1944293,102860.0,102850.0,1.24632185]
[1746805195514,0.1944293,102860.0,102850.0,0.34351508]
[1746805195707,0.38182787,102860.0,102850.0,0.50363508]
[1746805195907,0.46052787,102860.0,102850.0,0.50363508]
[1746805196520,0.46052787,102860.0,102850.0,0.34351508]
[1746805196823,0.2731293,102860.0,102850.0,0.50263508]
[1746805197119,0.2741293,102860.0,102850.0,0.50163508]
[1746805197519,0.1954293,102860.0,102850.0,1.24356185]
[1746805197718,0.1954293,102860.0,102850.0,1.40300185]
[1746805198321,0.1954293,102860.0,102850.0,1.56300185]
[1746805199020,0.1954293,102860.0,102850.0,1.56400185]
[1746805199620,0.1944293,102860.0,102850.0,1.56500185]
[1746805202624,0.1944293,102860.0,102850.0,0.66291508]
[1746805202818,0.78072787,102860.0,102850.0,0.66291508]
[1746805203023,0.82062787,102860.0,102850.0,0.66291508]
[1746805203223,0.82062787,102860.0,102850.0,0.50291508]
[1746805203419,0.6332293,102860.0,102850.0,0.50291508]
[1746805203810,0.6332293,102860.0,102850.0,0.37731479]
[1746805204016,0.6332293,102860.0,102850.0,0.37631479]
[1746805204216,0.6342293,102860.0,102850.0,0.37631479]
[1746805204519,0.6342293,102860.0,102850.0,0.37531479]
[1746805205319,0.2734293,102860.0,102850.0,0.37531479]
[1746805206331,0.6342293,102860.0,102850.0,0.37531479]
[1746805206725,0.82162787,102860.0,102850.0,0.37531479]
[1746805207025,0.2734293,102860.0,102850.0,0.37531479]
[1746805207221,0.001,102860.0,102850.0,1.24356185]
[1746805207421,0.1954293,102860.0,102850.0,1.24356185]
[1746805208329,0.1954293,102860.0,102850.0,1.40356185]
[1746805208527,0.1954293,102860.0,102850.0,1.40456185]
[1746805209234,0.1944293,102860.0,102850.0,1.40556185]
[1746805210928,0.1944293,102860.0,102850.0,0.50351508]
[1746805211239,0.5552293,102860.0,102850.0,0.66199508]
[1746805211427,0.6360293,102860.0,102850.0,0.21791479]
[1746805211733,0.82342787,102860.0,102850.0,0.37731479]
[1746805212530,0.6360293,102860.0,102850.0,0.37631479]
[1746805212830,0.6370293,102860.0,102850.0,0.37531479]
[1746805213238,1.18522787,102860.0,102850.0,0.13671479]
[1746805213432,0.1944482,102850.0,102840.0,0.01880719]
[1746805213642,0.86444677,102850.0,102840.0,0.01880719]
[1746805213936,0.96167877,102850.0,102840.0,0.01880719]
[1746805214140,1.12167877,102850.0,102840.0,0.01880719]
[1746805214741,0.1944671,102840.0,102830.0,0.35694329]
[1746805214935,0.82566567,102840.0,102830.0,0.35694329]
[1746805215239,0.82566567,102840.0,102830.0,0.2566337]
[1746805215636,0.82566567,102840.0,102830.0,0.1594]
[1746805215830,0.82566567,102840.0,102830.0,0.17663612]
[1746805216541,0.82566567,102840.0,102830.0,0.17963612]
[1746805217035,0.82566567,102840.0,102830.0,0.02023612]
[1746805217233,1.01306424,102840.0,102830.0,0.02023612]
[1746805217432,0.82566567,102840.0,102830.0,0.02023612]
[1746805217939,1.01306424,102840.0,102830.0,0.006]
[1746805218133,1.27030824,102840.0,102830.0,0.006]
[1746805218527,1.08290967,102840.0,102830.0,0.006]
[1746805219031,1.27030824,102840.0,102830.0,0.006]
[1746805219439,1.27030824,102840.0,102830.0,1e-07]
[1746805219647,1.34435048,102840.0,102830.0,1e-07]
[1746805221140,1.50323048,102840.0,102830.0,1e-07]
[1746805221340,0.1945049,102820.0,102810.0,0.05983089]
[1746805221539,0.74270347,102820.0,102810.0,0.01883089]
[1746805221838,1.18680347,102820.0,102810.0,0.01883089]
[1746805222139,0.9994049,102820.0,102810.0,0.01883089]
[1746805222331,1.18680347,102820.0,102810.0,0.01883089]
[1746805222530,1.18780347,102820.0,102810.0,0.02383089]
[1746805222737,1.18780347,102820.0,102810.0,0.02783089]
[1746805222935,1.19753522,102820.0,102810.0,0.02783089]
[1746805223137,1.29479922,102820.0,102810.0,0.01298774]
[1746805223444,1.45363922,102820.0,102810.0,0.01298774]
[1746805224140,1.61363922,102820.0,102810.0,0.01298774]
[1746805224441,1.61263922,102820.0,102810.0,0.00798774]
[1746805224646,1.61263922,102820.0,102810.0,0.00398774]
[1746805225344,1.45263922,102820.0,102810.0,0.00398774]
[1746805226140,1.61263922,102820.0,102810.0,0.00398774]
[1746805226538,1.16913665,102820.0,102810.0,0.00398774]
[1746805226736,1.16913665,102820.0,102810.0,0.08048774]
[1746805227136,1.00913665,102820.0,102810.0,0.08048774]
[1746805227341,1.19653522,102820.0,102810.0,0.20608803]
[1746805228242,1.19653522,102820.0,102810.0,0.24588803]
[1746805228433,1.00913665,102820.0,102810.0,0.24588803]
[1746805228636,1.19653522,102820.0,102810.0,0.24588803]
[1746805229235,0.96733665,102820.0,102810.0,0.3431501]
[1746805230043,0.24573665,102820.0,102810.0,0.3431501]
[1746805230243,0.20423665,102820.0,102810.0,0.72507247]
[1746805230448,0.20423665,102820.0,102810.0,0.3431501]
[1746805230641,0.20423665,102820.0,102810.0,0.5376739]
[1746805230842,0.20423665,102820.0,102810.0,0.3431501]
[1746805231240,0.20423665,102820.0,102810.0,0.5031501]
[1746805232245,0.20423665,102820.0,102810.0,0.6976739]
[1746805232746,0.20423665,102820.0,102810.0,0.5031501]
[1746805233943,0.20423665,102820.0,102810.0,0.6976739]
[1746805234139,0.20423665,102820.0,102810.0,1.0584739]
[1746805234341,0.20423665,102820.0,102810.0,1.24587247]
[1746805234540,0.7011734,102830.0,102820.0,0.1945049]
[1746805234740,0.3403734,102830.0,102820.0,0.94650376]
[1746805234941,0.2917243,102840.0,102830.0,0.2917149]
[1746805235149,0.25271361,102840.0,102830.0,1.39995376]
[1746805235441,0.2431041,102840.0,102830.0,1.30271346]
[1746805235646,0.2431041,102840.0,102830.0,1.39998693]
[1746805236047,0.2431041,102840.0,102830.0,1.20550093]
[1746805236248,0.2431041,102840.0,102830.0,1.39998693]
[1746805237751,0.42400865,102850.0,102840.0,0.1944671]
[1746805237945,0.41434864,102850.0,102840.0,1.10452596]
[1746805238147,0.36573334,102850.0,102840.0,1.26452596]
[1746805238345,0.36573334,102850.0,102840.0,1.36176911]
[1746805238549,0.36573334,102850.0,102840.0,0.97990344]
[1746805238941,0.36573334,102850.0,102840.0,0.46034344]
[1746805239146,0.36773334,102850.0,102840.0,0.61766344]
[1746805239548,0.2936911,102850.0,102840.0,0.61766344]
[1746805239848,0.2956911,102850.0,102840.0,0.97846344]
[1746805240047,0.2470758,102850.0,102840.0,1.36032911]
[1746805240247,0.2470758,102850.0,102840.0,1.52048765]
[1746805240447,0.2470758,102850.0,102840.0,1.33308908]
[1746805240649,0.2470758,102850.0,102840.0,0.98006198]
[1746805240952,0.2470758,102850.0,102840.0,1.13858198]
[1746805241247,0.2470758,102850.0,102840.0,1.33304908]
[1746805241454,0.2470758,102850.0,102840.0,1.13858198]
[1746805242251,0.2868758,102850.0,102840.0,0.97858198]
[1746805242647,0.2470758,102850.0,102840.0,0.97858198]
[1746805242847,0.2470758,102850.0,102840.0,1.04744879]
[1746805243054,0.2470758,102850.0,102840.0,1.36044765]
[1746805243245,0.2470758,102850.0,102840.0,1.52044765]
[1746805243448,0.2470758,102850.0,102840.0,1.33304908]
[1746805244841,0.2470758,102850.0,102840.0,1.13858198]
[1746805245544,0.43447437,102850.0,102840.0,0.46050198]
[1746805245854,0.47187437,102850.0,102840.0,0.61922198]
[1746805246156,0.50907437,102850.0,102840.0,0.45922198]
[1746805246454,0.96710637,102850.0,102840.0,4e-08]
[1746805246650,1.00750637,102850.0,102840.0,4e-08]
[1746805246856,1.19490494,102850.0,102840.0,4e-08]